[Event "Titled Tuesday Blitz February 15 Late 2022"]
[White "Adewumi, Tanitoluwa"]
[Black "Sarkar, Justin"]
[WhiteFideId "30966396"]
[BlackFideId "2010011"]
[WhiteElo "2521"]
[BlackElo "2038"]
[Result "1-0"]
[Round "10"]
[TimeControl "180+1"]
[Date "2022.02.16"]
[WhiteClock "0:00:07"]
[BlackClock "0:00:02"]

1. e4 {[%clk 0:02:48]}  c5 {[%clk 0:02:59]} 2. Nf3 {[%clk 0:02:48]}  Nc6 {[%clk 0:02:59]} 3. Bb5 {[%clk 0:02:48]}  a6 {[%clk 0:02:59]} 4. Bxc6 {[%clk 0:02:48]}  dxc6 {[%clk 0:02:59]} 5. d3 {[%clk 0:02:46]}  Qc7 {[%clk 0:02:59]} 6. O-O {[%clk 0:02:42]}  e5 {[%clk 0:02:59]} 7. h3 {[%clk 0:02:39]}  Ne7 {[%clk 0:02:57]} 8. Be3 {[%clk 0:02:36]}  Ng6 {[%clk 0:02:55]} 9. a4 {[%clk 0:02:34]}  a5 {[%clk 0:02:54]} 10. Nc3 {[%clk 0:02:32]}  f6 {[%clk 0:02:47]} 11. Ne2 {[%clk 0:02:29]}  h5 {[%clk 0:02:40]} 12. Ng3 {[%clk 0:02:28]}  h4 {[%clk 0:02:39]} 13. Nf5 {[%clk 0:02:23]}  Bxf5 {[%clk 0:02:31]} 14. exf5 {[%clk 0:02:24]}  Ne7 {[%clk 0:02:31]} 15. Bxc5 {[%clk 0:02:24]}  Nxf5 {[%clk 0:02:31]} 16. Bxf8 {[%clk 0:02:25]}  Kxf8 {[%clk 0:02:21]} 17. Qe2 {[%clk 0:02:25]}  Rd8 {[%clk 0:02:15]} 18. c3 {[%clk 0:02:23]}  Kf7 {[%clk 0:02:07]} 19. Rfe1 {[%clk 0:02:15]}  g6 {[%clk 0:02:04]} 20. Rad1 {[%clk 0:02:12]}  Rd5 {[%clk 0:01:48]} 21. Qe4 {[%clk 0:02:03]}  Nd6 {[%clk 0:01:42]} 22. Qg4 {[%clk 0:01:55]}  Nf5 {[%clk 0:01:41]} 23. Rd2 {[%clk 0:01:35]}  Qd7 {[%clk 0:01:19]} 24. c4 {[%clk 0:01:17]}  Rxd3 {[%clk 0:01:17]} 25. Rxd3 {[%clk 0:01:15]}  Qxd3 {[%clk 0:01:17]} 26. Rxe5 {[%clk 0:01:15]}  Qb1+ {[%clk 0:00:30]} 27. Re1 {[%clk 0:01:06]}  Qxb2 {[%clk 0:00:30]} 28. Qe4 {[%clk 0:01:00]}  Kg7 {[%clk 0:00:30]} 29. Qe6 {[%clk 0:00:56]}  Rf8 {[%clk 0:00:18]} 30. Re4 {[%clk 0:00:43]}  Rf7 {[%clk 0:00:15]} 31. Nxh4 {[%clk 0:00:37]}  Nxh4 {[%clk 0:00:10]} 32. Rxh4 {[%clk 0:00:35]}  Qa1+ {[%clk 0:00:08]} 33. Kh2 {[%clk 0:00:35]}  Qe5+ {[%clk 0:00:08]} 34. Qxe5 {[%clk 0:00:35]}  fxe5 {[%clk 0:00:08]} 35. Kg3 {[%clk 0:00:34]}  Rd7 {[%clk 0:00:08]} 36. Re4 {[%clk 0:00:32]}  Kf6 {[%clk 0:00:07]} 37. Kf3 {[%clk 0:00:23]}  Rd3+ {[%clk 0:00:07]} 38. Re3 {[%clk 0:00:23]}  Rd4 {[%clk 0:00:07]} 39. Re4 {[%clk 0:00:21]}  Rd1 {[%clk 0:00:05]} 40. g4 {[%clk 0:00:16]}  Ra1 {[%clk 0:00:04]} 41. c5 {[%clk 0:00:14]}  Rc1 {[%clk 0:00:04]} 42. h4 {[%clk 0:00:10]}  Rc3+ {[%clk 0:00:04]} 43. Kg2 {[%clk 0:00:10]}  Rxc5 {[%clk 0:00:04]} 44. f3 {[%clk 0:00:09]}  Rc2+ {[%clk 0:00:04]} 45. Kg3 {[%clk 0:00:10]}  b5 {[%clk 0:00:04]} 46. axb5 {[%clk 0:00:09]}  cxb5 {[%clk 0:00:05]} 47. f4 {[%clk 0:00:08]}  exf4+ {[%clk 0:00:05]} 48. Rxf4+ {[%clk 0:00:08]}  Kg7 {[%clk 0:00:05]} 49. Re4 {[%clk 0:00:08]}  Rc3+ {[%clk 0:00:05]} 50. Kf2 {[%clk 0:00:07]}  a4 {[%clk 0:00:05]} 51. Re7+ {[%clk 0:00:06]}  Kf6 {[%clk 0:00:05]} 52. Rb7 {[%clk 0:00:06]}  Rb3 {[%clk 0:00:05]} 53. Rb6+ {[%clk 0:00:06]}  Ke5 {[%clk 0:00:05]} 54. Rxg6 {[%clk 0:00:06]}  a3 {[%clk 0:00:05]} 55. h5 {[%clk 0:00:06]}  a2 {[%clk 0:00:05]} 56. Ra6 {[%clk 0:00:07]}  Rb2+ {[%clk 0:00:04]} 57. Kg3 {[%clk 0:00:08]}  b4 {[%clk 0:00:04]} 58. h6 {[%clk 0:00:08]}  Rb3+ {[%clk 0:00:04]} 59. Kh4 {[%clk 0:00:08]}  Ra3 {[%clk 0:00:02]} 60. Rxa3 {[%clk 0:00:06]}  bxa3 {[%clk 0:00:02]} 61. h7 {[%clk 0:00:07]} 1-0


[Site "https://www.chess.com"]

[Event "Titled Tuesday Blitz February 15 Late 2022"]
[White "Al Mukhaini, Shima"]
[Black "Kozin, Yuri"]
[WhiteFideId "22005854"]
[BlackFideId "4129920"]
[WhiteElo "2396"]
[BlackElo "2516"]
[Result "1-0"]
[Round "10"]
[TimeControl "180+1"]
[Date "2022.02.16"]
[WhiteClock "0:01:14"]
[BlackClock "0:01:03"]

1. b3 {[%clk 0:03:00]}  Nf6 {[%clk 0:02:58]} 2. Bb2 {[%clk 0:03:00]}  e6 {[%clk 0:02:58]} 3. e3 {[%clk 0:03:00]}  Be7 {[%clk 0:02:59]} 4. f4 {[%clk 0:03:00]}  b6 {[%clk 0:02:59]} 5. Qf3 {[%clk 0:02:56]}  d5 {[%clk 0:02:58]} 6. g4 {[%clk 0:02:55]}  O-O {[%clk 0:02:44]} 7. g5 {[%clk 0:02:53]}  Ne4 {[%clk 0:02:41]} 8. d3 {[%clk 0:02:53]}  Nd6 {[%clk 0:02:39]} 9. h4 {[%clk 0:02:48]}  c5 {[%clk 0:02:38]} 10. Nd2 {[%clk 0:02:47]}  Bb7 {[%clk 0:02:38]} 11. Bg2 {[%clk 0:02:46]}  Nc6 {[%clk 0:02:35]} 12. Ne2 {[%clk 0:02:45]}  Nb4 {[%clk 0:02:35]} 13. Kd1 {[%clk 0:02:44]}  d4 {[%clk 0:02:23]} 14. e4 {[%clk 0:02:43]}  Nf5 {[%clk 0:02:24]} 15. Nf1 {[%clk 0:02:38]}  a5 {[%clk 0:02:18]} 16. a3 {[%clk 0:02:37]}  Na6 {[%clk 0:02:18]} 17. Qh3 {[%clk 0:02:32]}  Nd6 {[%clk 0:02:14]} 18. h5 {[%clk 0:02:30]}  e5 {[%clk 0:01:57]} 19. fxe5 {[%clk 0:02:17]}  Nb5 {[%clk 0:01:56]} 20. g6 {[%clk 0:02:11]}  Bc8 {[%clk 0:01:56]} 21. gxh7+ {[%clk 0:02:10]}  Kxh7 {[%clk 0:01:53]} 22. Qh2 {[%clk 0:02:00]}  Bg5 {[%clk 0:01:47]} 23. Nd2 {[%clk 0:01:38]}  Be6 {[%clk 0:01:39]} 24. Nf3 {[%clk 0:01:36]}  Be3 {[%clk 0:01:38]} 25. Bh3 {[%clk 0:01:32]}  Nac7 {[%clk 0:01:31]} 26. Ng3 {[%clk 0:01:24]}  Bf4 {[%clk 0:01:26]} 27. Qg2 {[%clk 0:01:22]}  Nc3+ {[%clk 0:01:13]} 28. Bxc3 {[%clk 0:01:19]}  dxc3 {[%clk 0:01:14]} 29. Nf5 {[%clk 0:01:16]}  Nb5 {[%clk 0:01:03]} 30. Qxg7# {[%clk 0:01:14]} 1-0


[Site "https://www.chess.com"]

[Event "Titled Tuesday Blitz February 15 Late 2022"]
[White "Andreikin, Dmitry"]
[Black "Rustemov, Alexander"]
[WhiteFideId "4158814"]
[BlackFideId "4119002"]
[WhiteElo "2736"]
[BlackElo "2779"]
[Result "1-0"]
[Round "10"]
[TimeControl "180+1"]
[Date "2022.02.15"]
[WhiteClock "0:01:18"]
[BlackClock "0:00:01"]

1. e4 {[%clk 0:03:00]}  e6 {[%clk 0:02:59]} 2. e5 {[%clk 0:03:01]}  d6 {[%clk 0:02:55]} 3. Nf3 {[%clk 0:03:01]}  dxe5 {[%clk 0:02:49]} 4. Nxe5 {[%clk 0:03:02]}  Nd7 {[%clk 0:02:46]} 5. Bb5 {[%clk 0:02:57]}  Bd6 {[%clk 0:02:30]} 6. Qh5 {[%clk 0:02:46]}  g6 {[%clk 0:02:14]} 7. Qe2 {[%clk 0:02:46]}  c6 {[%clk 0:02:08]} 8. Nxd7 {[%clk 0:02:43]}  Bxd7 {[%clk 0:01:46]} 9. Bc4 {[%clk 0:02:43]}  Nf6 {[%clk 0:01:37]} 10. d4 {[%clk 0:02:40]}  Nd5 {[%clk 0:01:34]} 11. Nd2 {[%clk 0:02:38]}  b5 {[%clk 0:01:17]} 12. Bd3 {[%clk 0:02:32]}  O-O {[%clk 0:01:03]} 13. Ne4 {[%clk 0:02:25]}  Be7 {[%clk 0:00:56]} 14. h4 {[%clk 0:02:22]}  Nb4 {[%clk 0:00:42]} 15. Bh6 {[%clk 0:02:15]}  Re8 {[%clk 0:00:41]} 16. h5 {[%clk 0:02:15]}  g5 {[%clk 0:00:26]} 17. O-O-O {[%clk 0:02:08]}  f5 {[%clk 0:00:23]} 18. Nc5 {[%clk 0:02:03]}  Bxc5 {[%clk 0:00:20]} 19. dxc5 {[%clk 0:02:03]}  Qf6 {[%clk 0:00:18]} 20. Bxb5 {[%clk 0:01:49]}  Rad8 {[%clk 0:00:11]} 21. Rd6 {[%clk 0:01:21]}  Qxh6 {[%clk 0:00:10]} 22. Rhd1 {[%clk 0:01:21]}  cxb5 {[%clk 0:00:05]} 23. Rxd7 {[%clk 0:01:21]}  Rxd7 {[%clk 0:00:02]} 24. Rxd7 {[%clk 0:01:22]}  Nd5 {[%clk 0:00:02]} 25. Rxd5 {[%clk 0:01:20]}  g4+ {[%clk 0:00:01]} 26. Kb1 {[%clk 0:01:18]} 1-0


[Site "https://www.chess.com"]

[Event "Titled Tuesday Blitz February 15 Late 2022"]
[White "Antonio, Jorge Carlos"]
[Black "Howell, David W L"]
[WhiteFideId "113190"]
[BlackFideId "410608"]
[WhiteElo "2247"]
[BlackElo "2559"]
[Result "0-1"]
[Round "10"]
[TimeControl "180+1"]
[Date "2022.02.16"]
[WhiteClock "0:02:08"]
[BlackClock "0:02:16"]

1. d4 {[%clk 0:03:00]}  Nf6 {[%clk 0:02:50]} 2. c4 {[%clk 0:03:00]}  c5 {[%clk 0:02:49]} 3. e3 {[%clk 0:02:57]}  cxd4 {[%clk 0:02:41]} 4. exd4 {[%clk 0:02:57]}  d5 {[%clk 0:02:42]} 5. Nf3 {[%clk 0:02:56]}  g6 {[%clk 0:02:37]} 6. c5 {[%clk 0:02:52]}  Bg7 {[%clk 0:02:35]} 7. Nc3 {[%clk 0:02:52]}  O-O {[%clk 0:02:35]} 8. Bd3 {[%clk 0:02:51]}  Bg4 {[%clk 0:02:33]} 9. h3 {[%clk 0:02:49]}  Bxf3 {[%clk 0:02:29]} 10. Qxf3 {[%clk 0:02:48]}  Nc6 {[%clk 0:02:30]} 11. Be3 {[%clk 0:02:45]}  e5 {[%clk 0:02:30]} 12. dxe5 {[%clk 0:02:39]}  Nxe5 {[%clk 0:02:28]} 13. Qe2 {[%clk 0:02:21]}  d4 {[%clk 0:02:28]} 14. Bf4 {[%clk 0:02:18]}  Nxd3+ {[%clk 0:02:26]} 15. Qxd3 {[%clk 0:02:15]}  dxc3 {[%clk 0:02:27]} 16. Qxc3 {[%clk 0:02:15]}  Re8+ {[%clk 0:02:18]} 17. Be3 {[%clk 0:02:13]}  Nd5 {[%clk 0:02:17]} 18. Qd3 {[%clk 0:02:08]}  Nxe3 {[%clk 0:02:16]} 0-1


[Site "https://www.chess.com"]

[Event "Titled Tuesday Blitz February 15 Late 2022"]
[White "Aradhya, Garg"]
[Black "Demchenko, Anton"]
[WhiteFideId "25006746"]
[BlackFideId "4160258"]
[WhiteElo "2169"]
[BlackElo "2539"]
[Result "0-1"]
[Round "10"]
[TimeControl "180+1"]
[Date "2022.02.15"]
[WhiteClock "0:00:21"]
[BlackClock "0:00:23"]

1. d4 {[%clk 0:03:00]}  Nf6 {[%clk 0:03:00]} 2. c4 {[%clk 0:03:01]}  d6 {[%clk 0:03:01]} 3. Nc3 {[%clk 0:02:59]}  e5 {[%clk 0:03:00]} 4. Nf3 {[%clk 0:02:59]}  Nbd7 {[%clk 0:03:00]} 5. g3 {[%clk 0:02:59]}  g6 {[%clk 0:02:58]} 6. Bg2 {[%clk 0:02:59]}  Bg7 {[%clk 0:02:59]} 7. O-O {[%clk 0:02:59]}  O-O {[%clk 0:02:59]} 8. e4 {[%clk 0:02:58]}  exd4 {[%clk 0:03:00]} 9. Nxd4 {[%clk 0:02:58]}  Nc5 {[%clk 0:03:00]} 10. h3 {[%clk 0:02:53]}  Re8 {[%clk 0:02:59]} 11. Re1 {[%clk 0:02:52]}  a5 {[%clk 0:03:00]} 12. Bf4 {[%clk 0:02:49]}  Bd7 {[%clk 0:02:49]} 13. Nb3 {[%clk 0:02:39]}  Ne6 {[%clk 0:02:47]} 14. Be3 {[%clk 0:02:38]}  a4 {[%clk 0:02:47]} 15. Nd4 {[%clk 0:02:37]}  c6 {[%clk 0:02:41]} 16. Qc2 {[%clk 0:02:25]}  Ng4 {[%clk 0:02:33]} 17. hxg4 {[%clk 0:02:15]}  Nxd4 {[%clk 0:02:32]} 18. Qd1 {[%clk 0:02:15]}  c5 {[%clk 0:02:30]} 19. Nd5 {[%clk 0:01:55]}  Bc6 {[%clk 0:02:30]} 20. Rc1 {[%clk 0:01:54]}  Bxd5 {[%clk 0:02:30]} 21. exd5 {[%clk 0:01:47]}  a3 {[%clk 0:02:21]} 22. b3 {[%clk 0:01:45]}  Qd7 {[%clk 0:02:16]} 23. Bf1 {[%clk 0:01:29]}  Re4 {[%clk 0:02:11]} 24. f3 {[%clk 0:01:28]}  Re7 {[%clk 0:02:10]} 25. Bxd4 {[%clk 0:01:24]}  Bxd4+ {[%clk 0:02:07]} 26. Kg2 {[%clk 0:01:23]}  Rxe1 {[%clk 0:02:06]} 27. Qxe1 {[%clk 0:01:24]}  Re8 {[%clk 0:02:07]} 28. Qd1 {[%clk 0:01:22]}  Qe7 {[%clk 0:02:05]} 29. Rc2 {[%clk 0:01:21]}  Qe3 {[%clk 0:02:04]} 30. Kh3 {[%clk 0:01:08]}  Qe1 {[%clk 0:01:23]} 31. Qxe1 {[%clk 0:01:01]}  Rxe1 {[%clk 0:01:24]} 32. Kg2 {[%clk 0:01:01]}  Ra1 {[%clk 0:01:22]} 33. f4 {[%clk 0:00:55]}  Bb2 {[%clk 0:01:22]} 34. Re2 {[%clk 0:00:45]}  Rxa2 {[%clk 0:01:19]} 35. Re8+ {[%clk 0:00:44]}  Kg7 {[%clk 0:01:19]} 36. Ra8 {[%clk 0:00:43]}  Bd4+ {[%clk 0:01:18]} 37. Kh3 {[%clk 0:00:43]}  Rf2 {[%clk 0:01:10]} 38. Rxa3 {[%clk 0:00:37]}  Rxf1 {[%clk 0:01:10]} 39. Ra7 {[%clk 0:00:37]}  Rb1 {[%clk 0:00:53]} 40. Rxb7 {[%clk 0:00:37]}  h5 {[%clk 0:00:50]} 41. f5 {[%clk 0:00:24]}  gxf5 {[%clk 0:00:44]} 42. gxh5 {[%clk 0:00:24]}  Rb2 {[%clk 0:00:44]} 43. h6+ {[%clk 0:00:22]}  Kxh6 {[%clk 0:00:43]} 44. Rxf7 {[%clk 0:00:21]}  Rxb3 {[%clk 0:00:42]} 45. Rxf5 {[%clk 0:00:19]}  Be5 {[%clk 0:00:41]} 46. Kg2 {[%clk 0:00:20]}  Rxg3+ {[%clk 0:00:41]} 47. Kf2 {[%clk 0:00:20]}  Rc3 {[%clk 0:00:41]} 48. Rf8 {[%clk 0:00:20]}  Rxc4 {[%clk 0:00:42]} 49. Ke3 {[%clk 0:00:20]}  Kg6 {[%clk 0:00:41]} 50. Rf1 {[%clk 0:00:19]}  Rd4 {[%clk 0:00:40]} 51. Rg1+ {[%clk 0:00:19]}  Kf7 {[%clk 0:00:40]} 52. Rf1+ {[%clk 0:00:19]}  Ke7 {[%clk 0:00:41]} 53. Ra1 {[%clk 0:00:19]}  Rxd5 {[%clk 0:00:41]} 54. Ra7+ {[%clk 0:00:19]}  Ke6 {[%clk 0:00:42]} 55. Ra8 {[%clk 0:00:19]}  Rd4 {[%clk 0:00:42]} 56. Re8+ {[%clk 0:00:19]}  Kd5 {[%clk 0:00:42]} 57. Ra8 {[%clk 0:00:19]}  Re4+ {[%clk 0:00:42]} 58. Kd3 {[%clk 0:00:19]}  Rh4 {[%clk 0:00:43]} 59. Ra5 {[%clk 0:00:17]}  Rh3+ {[%clk 0:00:43]} 60. Ke2 {[%clk 0:00:17]}  Bd4 {[%clk 0:00:44]} 61. Ra3 {[%clk 0:00:16]}  Rxa3 {[%clk 0:00:12]} 62. Kf1 {[%clk 0:00:17]}  Ke4 {[%clk 0:00:11]} 63. Kg2 {[%clk 0:00:17]}  Rb3 {[%clk 0:00:10]} 64. Kh2 {[%clk 0:00:17]}  Be5+ {[%clk 0:00:09]} 65. Kg2 {[%clk 0:00:18]}  c4 {[%clk 0:00:09]} 66. Kf2 {[%clk 0:00:18]}  Rb5 {[%clk 0:00:09]} 67. Ke2 {[%clk 0:00:19]}  d5 {[%clk 0:00:09]} 68. Kd2 {[%clk 0:00:19]}  d4 {[%clk 0:00:09]} 69. Kc2 {[%clk 0:00:19]}  Bd6 {[%clk 0:00:09]} 70. Kd2 {[%clk 0:00:20]}  Rh5 {[%clk 0:00:07]} 71. Kc2 {[%clk 0:00:20]}  Kd5 {[%clk 0:00:08]} 72. Kc1 {[%clk 0:00:20]}  c3 {[%clk 0:00:08]} 73. Kc2 {[%clk 0:00:20]}  Rg5 {[%clk 0:00:08]} 74. Kb3 {[%clk 0:00:20]}  Rg7 {[%clk 0:00:08]} 75. Kc2 {[%clk 0:00:20]}  Kc4 {[%clk 0:00:08]} 76. Kc1 {[%clk 0:00:20]}  Rb7 {[%clk 0:00:08]} 77. Kd1 {[%clk 0:00:19]}  d3 {[%clk 0:00:08]} 78. Ke1 {[%clk 0:00:20]}  Bf8 {[%clk 0:00:06]} 79. Kf2 {[%clk 0:00:20]}  c2 {[%clk 0:00:06]} 80. Ke3 {[%clk 0:00:20]}  c1=Q+ {[%clk 0:00:06]} 81. Ke4 {[%clk 0:00:21]}  d2 {[%clk 0:00:06]} 82. Kf5 {[%clk 0:00:21]}  d1=Q {[%clk 0:00:06]} 83. Kg6 {[%clk 0:00:21]}  Ba3 {[%clk 0:00:06]} 84. Kf5 {[%clk 0:00:21]}  Bb4 {[%clk 0:00:06]} 85. Ke6 {[%clk 0:00:21]}  Rb8 {[%clk 0:00:06]} 86. Ke5 {[%clk 0:00:19]}  Qcd2 {[%clk 0:00:06]} 87. Ke4 {[%clk 0:00:19]}  Q1e2+ {[%clk 0:00:06]} 88. Kf5 {[%clk 0:00:19]}  Qde1 {[%clk 0:00:06]} 89. Kf4 {[%clk 0:00:19]}  Q1f2+ {[%clk 0:00:06]} 90. Kg5 {[%clk 0:00:19]}  Ra8 {[%clk 0:00:06]} 91. Kg6 {[%clk 0:00:19]}  Qef3 {[%clk 0:00:06]} 92. Kg5 {[%clk 0:00:18]}  Q3g3+ {[%clk 0:00:06]} 93. Kh6 {[%clk 0:00:19]}  Ra4 {[%clk 0:00:05]} 94. Kh7 {[%clk 0:00:19]}  Ra3 {[%clk 0:00:06]} 95. Kh6 {[%clk 0:00:18]}  Kb5 {[%clk 0:00:07]} 96. Kh5 {[%clk 0:00:17]}  Be1 {[%clk 0:00:07]} 97. Kh6 {[%clk 0:00:16]}  Ka4 {[%clk 0:00:08]} 98. Kh7 {[%clk 0:00:16]}  Kb3 {[%clk 0:00:09]} 99. Kh6 {[%clk 0:00:16]}  Kc2 {[%clk 0:00:10]} 100. Kh7 {[%clk 0:00:16]}  Kd1 {[%clk 0:00:11]} 101. Kh6 {[%clk 0:00:17]}  Ke2 {[%clk 0:00:12]} 102. Kh5 {[%clk 0:00:17]}  Kf1 {[%clk 0:00:13]} 103. Kh6 {[%clk 0:00:17]}  Kg2 {[%clk 0:00:14]} 104. Kh7 {[%clk 0:00:18]}  Kh1 {[%clk 0:00:15]} 105. Kh8 {[%clk 0:00:18]}  Ra2 {[%clk 0:00:16]} 106. Kh7 {[%clk 0:00:18]}  Qfg2 {[%clk 0:00:16]} 107. Kh6 {[%clk 0:00:19]}  Rb2 {[%clk 0:00:17]} 108. Kh5 {[%clk 0:00:19]}  Rb3 {[%clk 0:00:18]} 109. Kh6 {[%clk 0:00:19]}  Rc3 {[%clk 0:00:19]} 110. Kh7 {[%clk 0:00:20]}  Rf3 {[%clk 0:00:20]} 111. Kh6 {[%clk 0:00:20]}  Rf2 {[%clk 0:00:21]} 112. Kh7 {[%clk 0:00:20]}  Rf4 {[%clk 0:00:22]} 113. Kh8 {[%clk 0:00:21]}  Rh4# {[%clk 0:00:23]} 0-1


[Site "https://www.chess.com"]

[Event "Titled Tuesday Blitz February 15 Late 2022"]
[White "Bolanos, Fernando"]
[Black "Slugin, Sergey"]
[WhiteFideId "3304094"]
[BlackFideId "4122569"]
[WhiteElo "2019"]
[BlackElo "2358"]
[Result "0-1"]
[Round "10"]
[TimeControl "180+1"]
[Date "2022.02.16"]
[WhiteClock "0:00:04"]
[BlackClock "0:00:48"]

1. e4 {[%clk 0:03:00]}  c5 {[%clk 0:02:56]} 2. Nf3 {[%clk 0:03:00]}  e6 {[%clk 0:02:56]} 3. d4 {[%clk 0:03:00]}  cxd4 {[%clk 0:02:57]} 4. Nxd4 {[%clk 0:03:01]}  Nc6 {[%clk 0:02:58]} 5. c4 {[%clk 0:03:00]}  Qc7 {[%clk 0:02:55]} 6. Nc3 {[%clk 0:02:59]}  Nf6 {[%clk 0:02:53]} 7. Be3 {[%clk 0:02:59]}  Bb4 {[%clk 0:02:50]} 8. Qd3 {[%clk 0:02:57]}  Ne5 {[%clk 0:02:44]} 9. Qe2 {[%clk 0:02:49]}  Bxc3+ {[%clk 0:02:30]} 10. bxc3 {[%clk 0:02:49]}  Qa5 {[%clk 0:02:28]} 11. Rc1 {[%clk 0:02:21]}  Nxe4 {[%clk 0:02:01]} 12. Nb5 {[%clk 0:02:05]}  a6 {[%clk 0:01:52]} 13. Bd4 {[%clk 0:01:52]}  axb5 {[%clk 0:01:44]} 14. Qxe4 {[%clk 0:01:52]}  Nxc4 {[%clk 0:01:22]} 15. Bxc4 {[%clk 0:01:51]}  bxc4 {[%clk 0:01:15]} 16. Bxg7 {[%clk 0:01:51]}  Qg5 {[%clk 0:01:11]} 17. O-O {[%clk 0:00:18]}  Qxg7 {[%clk 0:01:10]} 18. Rcd1 {[%clk 0:00:15]}  O-O {[%clk 0:01:00]} 19. Qxc4 {[%clk 0:00:13]}  Ra5 {[%clk 0:01:00]} 20. h4 {[%clk 0:00:10]}  Rf5 {[%clk 0:00:53]} 21. Rd3 {[%clk 0:00:08]}  b5 {[%clk 0:00:50]} 22. Qc7 {[%clk 0:00:04]}  Qf6 {[%clk 0:00:48]} 0-1


[Site "https://www.chess.com"]

[Event "Titled Tuesday Blitz February 15 Late 2022"]
[White "Bon, Michael"]
[Black "Kujawski, Adam"]
[WhiteFideId "620696"]
[BlackFideId "1100920"]
[WhiteElo "2461"]
[BlackElo "2053"]
[Result "1-0"]
[Round "10"]
[TimeControl "180+1"]
[Date "2022.02.16"]
[WhiteClock "0:00:47"]
[BlackClock "0:00:01"]

1. e4 {[%clk 0:03:00]}  e5 {[%clk 0:02:59]} 2. Nc3 {[%clk 0:02:59]}  Nf6 {[%clk 0:02:59]} 3. Bc4 {[%clk 0:02:59]}  Nxe4 {[%clk 0:02:59]} 4. Qh5 {[%clk 0:02:59]}  Nd6 {[%clk 0:02:59]} 5. Bb3 {[%clk 0:02:59]}  Nc6 {[%clk 0:02:59]} 6. Nb5 {[%clk 0:02:58]}  g6 {[%clk 0:02:59]} 7. Qf3 {[%clk 0:02:57]}  f5 {[%clk 0:02:59]} 8. Qd5 {[%clk 0:02:58]}  Qe7 {[%clk 0:02:59]} 9. Nxc7+ {[%clk 0:02:58]}  Kd8 {[%clk 0:03:00]} 10. Nxa8 {[%clk 0:02:58]}  b6 {[%clk 0:03:00]} 11. d3 {[%clk 0:02:57]}  Bb7 {[%clk 0:02:41]} 12. h4 {[%clk 0:02:57]}  h6 {[%clk 0:02:38]} 13. Qf3 {[%clk 0:02:53]}  f4 {[%clk 0:02:22]} 14. Qg4 {[%clk 0:02:49]}  Qf6 {[%clk 0:01:51]} 15. Nf3 {[%clk 0:02:41]}  Bxa8 {[%clk 0:01:47]} 16. Bd2 {[%clk 0:02:40]}  Be7 {[%clk 0:01:12]} 17. O-O-O {[%clk 0:02:36]}  h5 {[%clk 0:01:07]} 18. Qh3 {[%clk 0:02:30]}  Nf5 {[%clk 0:01:01]} 19. Bc3 {[%clk 0:02:29]}  Ncd4 {[%clk 0:00:53]} 20. Bxd4 {[%clk 0:02:15]}  exd4 {[%clk 0:00:40]} 21. Ng5 {[%clk 0:02:14]}  Kc7 {[%clk 0:00:28]} 22. Rhe1 {[%clk 0:01:56]}  Bc5 {[%clk 0:00:24]} 23. Re2 {[%clk 0:01:15]}  a5 {[%clk 0:00:22]} 24. Rde1 {[%clk 0:01:14]}  Bc6 {[%clk 0:00:17]} 25. Qh2 {[%clk 0:00:59]}  Nd6 {[%clk 0:00:12]} 26. Ne4 {[%clk 0:00:53]}  Nxe4 {[%clk 0:00:11]} 27. dxe4 {[%clk 0:00:53]}  a4 {[%clk 0:00:11]} 28. Bd5 {[%clk 0:00:52]}  Bxd5 {[%clk 0:00:08]} 29. exd5 {[%clk 0:00:53]}  a3 {[%clk 0:00:08]} 30. Re4 {[%clk 0:00:49]}  axb2+ {[%clk 0:00:08]} 31. Kb1 {[%clk 0:00:49]}  Ra8 {[%clk 0:00:05]} 32. Qxf4+ {[%clk 0:00:48]}  Qxf4 {[%clk 0:00:05]} 33. Rxf4 {[%clk 0:00:49]}  Kd6 {[%clk 0:00:01]} 34. g4 {[%clk 0:00:47]} 1-0


[Site "https://www.chess.com"]

[Event "Titled Tuesday Blitz February 15 Late 2022"]
[White "Briscoe, Chris"]
[Black "Desideri, Ricardo Maruchi"]
[WhiteFideId "408360"]
[BlackFideId "2110440"]
[WhiteElo "2111"]
[BlackElo "1945"]
[Result "1-0"]
[Round "10"]
[TimeControl "180+1"]
[Date "2022.02.16"]
[WhiteClock "0:00:15"]
[BlackClock "0:00:10"]

1. e4 {[%clk 0:03:00]}  c5 {[%clk 0:02:49]} 2. Nf3 {[%clk 0:02:59]}  d6 {[%clk 0:02:50]} 3. d4 {[%clk 0:02:59]}  cxd4 {[%clk 0:02:50]} 4. Nxd4 {[%clk 0:03:00]}  Nf6 {[%clk 0:02:50]} 5. Nc3 {[%clk 0:03:00]}  a6 {[%clk 0:02:50]} 6. Bg5 {[%clk 0:03:00]}  Nbd7 {[%clk 0:02:49]} 7. Bc4 {[%clk 0:02:56]}  Qc7 {[%clk 0:02:48]} 8. Qe2 {[%clk 0:02:56]}  Ne5 {[%clk 0:02:36]} 9. Bb3 {[%clk 0:02:54]}  e6 {[%clk 0:02:19]} 10. f4 {[%clk 0:02:48]}  Ned7 {[%clk 0:02:10]} 11. O-O-O {[%clk 0:02:44]}  Nc5 {[%clk 0:02:07]} 12. Rhe1 {[%clk 0:02:32]}  Nxb3+ {[%clk 0:02:06]} 13. cxb3 {[%clk 0:02:29]}  Be7 {[%clk 0:02:04]} 14. Kb1 {[%clk 0:02:27]}  O-O {[%clk 0:02:02]} 15. e5 {[%clk 0:02:24]}  dxe5 {[%clk 0:02:01]} 16. fxe5 {[%clk 0:02:25]}  Nd5 {[%clk 0:01:52]} 17. Nxd5 {[%clk 0:01:49]}  exd5 {[%clk 0:01:52]} 18. Rc1 {[%clk 0:01:34]}  Qd7 {[%clk 0:01:41]} 19. Bxe7 {[%clk 0:01:17]}  Qxe7 {[%clk 0:01:39]} 20. Rc3 {[%clk 0:01:13]}  Be6 {[%clk 0:01:36]} 21. Rg3 {[%clk 0:01:04]}  Rac8 {[%clk 0:01:30]} 22. a3 {[%clk 0:01:02]}  g6 {[%clk 0:01:29]} 23. Qe3 {[%clk 0:00:55]}  Qh4 {[%clk 0:00:59]} 24. Ka2 {[%clk 0:00:53]}  Rc7 {[%clk 0:00:49]} 25. Rf1 {[%clk 0:00:47]}  Rfc8 {[%clk 0:00:44]} 26. Nxe6 {[%clk 0:00:37]}  fxe6 {[%clk 0:00:44]} 27. Rh3 {[%clk 0:00:32]}  Qe4 {[%clk 0:00:29]} 28. Qh6 {[%clk 0:00:20]}  Qxe5 {[%clk 0:00:22]} 29. Rhf3 {[%clk 0:00:20]}  Qg7 {[%clk 0:00:20]} 30. Qg5 {[%clk 0:00:20]}  h6 {[%clk 0:00:18]} 31. Qe3 {[%clk 0:00:17]}  Kh7 {[%clk 0:00:17]} 32. Qxe6 {[%clk 0:00:17]}  Rd8 {[%clk 0:00:15]} 33. Rf7 {[%clk 0:00:16]}  Rxf7 {[%clk 0:00:13]} 34. Rxf7 {[%clk 0:00:16]}  Rd7 {[%clk 0:00:10]} 35. Qxd7 {[%clk 0:00:15]} 1-0


[Site "https://www.chess.com"]